bitfinex-derivatives/quotes_ETHF0:USTF0_20250308
["timestamp","ask_amount","ask_price","bid_price","bid_amount"]
[1741446994502,3.2078,2175.7,2175.2,0.6616]
[1741446994694,2.7504,2175.9,2175.2,0.66849069]
[1741446995095,2.09,2175.9,2175.4,4.1273]
[1741446995296,2.09,2175.9,2175.5,1.3071]
[1741446995697,2.09,2175.9,2175.6,0.6298]
[1741446996798,0.6441,2176.2,2175.7,3.2078]
[1741446997300,3.2078,2176.1,2175.6,0.6298]
[1741446997802,4.75088575,2176.1,2175.6,0.6298]
[1741446998001,3.2078,2176.1,2175.6,0.6298]
[1741446998406,5.62631357,2176.1,2175.6,0.6298]
[1741446998697,4.08322099,2176.1,2175.6,0.6298]
[1741446998890,0.6965761,2176.0,2175.6,0.6298]
[1741446999094,2.09,2175.9,2175.6,0.6298]
[1741447000601,3.2078,2176.1,2175.6,0.6298]
[1741447000805,2.09683728,2176.4,2175.7,3.2078]
[1741447001501,0.00683728,2176.4,2175.7,3.2078]
[1741447001705,2.09683728,2176.4,2175.7,3.2078]
[1741447002309,3.6408022,2176.4,2175.7,3.2078]
[1741447002503,4.51702355,2176.4,2175.7,3.2078]
[1741447003505,3.6408022,2176.4,2175.7,3.2078]
[1741447005000,0.6404,2176.3,2175.7,3.2078]
[1741447005200,0.6404,2176.3,2175.6,0.6298]
[1741447005201,3.2078,2175.9,2175.6,0.6298]
[1741447005408,5.2978,2175.9,2175.6,0.6298]
[1741447005609,1.30929717,2175.8,2175.6,0.6298]
[1741447005915,2.79760189,2175.8,2175.2,0.00689069]
[1741447006106,3.2078,2175.6,2175.2,0.00689069]
[1741447006508,2.09,2175.5,2175.2,0.00689069]
[1741447006711,4.51239159,2175.5,2175.2,0.00689069]
[1741447006907,0.6029,2175.4,2175.2,0.00689069]
[1741447007214,3.2078,2175.3,2174.7,0.6271]
[1741447007414,4.75340189,2175.3,2174.8,0.6374]
[1741447007609,1.54560189,2175.2,2174.8,0.6374]
[1741447008014,2.42239159,2175.2,2174.8,0.6374]
[1741447008212,0.8767897,2175.2,2174.8,0.6374]
[1741447008407,0.00689069,2175.2,2174.8,0.64429069]
[1741447008809,0.70393905,2175.2,2174.8,0.64429069]
[1741447009015,1.55098249,2175.2,2174.8,0.64429069]
[1741447009413,2.09,2175.1,2174.8,0.00689069]
[1741447010707,3.2078,2175.0,2174.8,0.00689069]
[1741447010916,5.3593918,2175.0,2174.8,0.00689069]
[1741447011218,3.8153,2175.0,2174.8,0.00689069]
[1741447012111,3.2078,2175.0,2174.8,0.00689069]
[1741447012313,5.2978,2175.0,2174.8,0.00689069]
[1741447013021,2.09,2175.0,2174.8,0.00689069]
[1741447021122,5.2978,2175.0,2174.8,0.00274771]
[1741447021320,5.2978,2175.0,2174.2,4.433]
[1741447021321,9.2978,2175.0,2174.2,4.433]
[1741447021520,3.2078,2174.7,2174.2,4.433]
[1741447021819,2.7326,2174.6,2174.2,3.2078]
[1741447022019,2.7326,2174.6,2173.8,4.422]
[1741447022222,2.7326,2174.6,2173.8,4.80016853]
[1741447022413,2.7326,2174.6,2174.0,0.00689069]
[1741447023919,3.2078,2174.4,2174.0,0.00689069]
[1741447025319,2.09,2174.4,2174.0,0.00689069]
[1741447026921,5.2978,2174.4,2174.0,0.00689069]
[1741447028924,5.2978,2174.4,2173.5,3.8539]
[1741447028925,3.2078,2174.1,2173.5,3.8662]
[1741447029126,3.2078,2174.1,2173.5,3.2078]
[1741447029127,2.7149,2174.0,2173.5,3.2078]
[1741447029324,3.1959,2174.0,2173.5,3.2078]
[1741447030229,3.20279069,2174.0,2173.5,3.21469069]
[1741447031026,2.72179069,2174.0,2173.5,3.21469069]
[1741447031219,2.72179069,2174.0,2173.6,1.2613]
[1741447032232,0.00689069,2174.0,2173.6,1.2613]
[1741447032434,0.00689069,2174.0,2173.8,3.2078]
[1741447032629,0.00689069,2174.0,2173.9,0.6521]
[1741447033732,0.00689069,2174.0,2173.9,3.8599]
[1741447034326,0.6344,2174.7,2173.9,7.8599]
[1741447034526,2.7254,2174.7,2173.9,3.8599]
[1741447035030,4.26551675,2174.7,2173.9,3.8599]
[1741447035232,0.6233,2174.6,2173.9,3.8599]
[1741447035432,0.00689069,2174.5,2173.9,3.8599]
[1741447036529,3.2078,2174.4,2173.9,0.6521]
[1741447036730,2.09,2174.3,2173.9,0.6521]
[1741447037035,0.6476,2174.2,2173.9,0.6521]
[1741447037422,2.09,2174.3,2173.9,0.6521]
[1741447037622,2.09,2174.3,2173.9,3.8599]
[1741447039532,0.00689069,2174.5,2173.9,3.8599]
[1741447039732,0.60669069,2174.5,2173.9,3.8599]
[1741447040930,0.60669069,2174.5,2174.0,0.6075]
[1741447041337,0.60669069,2174.5,2173.6,3.8599]
[1741447041338,3.2078,2174.3,2173.6,3.8599]
[1741447041635,2.09,2174.3,2173.7,0.6415]
[1741447042033,0.00689069,2174.5,2173.9,3.2078]
[1741447042228,0.00689069,2174.5,2174.2,3.2078]
[1741447042428,0.00689069,2174.5,2174.3,0.6415]
[1741447045440,0.00689069,2174.5,2174.4,0.6277]
[1741447050541,0.00689069,2174.5,2174.2,3.2078]
[1741447053751,2.09,2174.4,2174.2,3.2078]
[1741447053946,2.6881,2174.4,2174.2,3.2078]
[1741447055447,2.6881,2174.4,2174.1,0.6179]
[1741447055748,2.6881,2174.4,2174.0,1.242]
[1741447056448,4.23171107,2174.4,2174.0,1.242]
[1741447056645,3.38497936,2174.4,2174.0,1.242]
[1741447056850,2.6881,2174.4,2174.0,1.242]
[1741447057052,4.23149848,2174.4,2174.0,1.242]
[1741447057853,2.6881,2174.4,2174.0,1.242]
[1741447058352,4.23143904,2174.4,2173.9,0.6011]
[1741447058554,4.71203904,2174.4,2173.8,3.2078]
[1741447058745,0.69668758,2174.3,2173.8,3.2078]
[1741447058948,1.57220172,2174.3,2173.8,3.2078]
[1741447059250,2.41885318,2174.3,2173.8,3.2078]
[1741447059450,0.6588,2174.2,2173.8,3.2078]
[1741447059640,3.2078,2174.0,2173.6,1.9214]
[1741447059843,0.5994,2173.9,2173.6,1.9214]
[1741447060049,2.14273904,2173.9,2173.6,1.9214]
[1741447060250,2.14273904,2173.9,2173.5,0.00689069]
[1741447060845,3.01825318,2173.9,2173.5,0.00689069]
[1741447062356,0.87551414,2173.9,2173.5,3.21469069]
[1741447062948,2.09,2174.1,2173.5,3.21469069]
[1741447063759,2.09,2174.1,2173.5,4.13501069]
[1741447063952,2.09,2174.1,2173.5,3.21469069]
[1741447064153,0.70384211,2174.5,2174.1,0.92007]
[1741447064343,0.00689069,2174.5,2174.2,5.092]
[1741447065055,0.00689069,2174.5,2174.3,21.7]
[1741447066451,0.00689069,2174.5,2174.2,5.092]
[1741447066954,0.00689069,2174.5,2174.2,26.792]
[1741447068855,0.00689069,2174.5,2174.3,2.09]
[1741447070350,0.00689069,2174.5,2174.4,21.7]
[1741447070545,0.00689069,2174.5,2174.3,2.09]
[1741447071355,4.55075128,2174.9,2174.3,2.09]
[1741447071356,3.90435128,2174.9,2174.3,2.09]
[1741447071544,3.90435128,2174.9,2174.5,3.2078]
[1741447071749,3.90435128,2174.9,2174.6,1.3122]
[1741447072058,3.8281,2175.3,2174.6,1.3122]
[1741447072260,2.7103,2175.3,2174.8,3.2078]
[1741447072449,0.00689069,2175.2,2174.8,3.2078]
[1741447072652,1.54946067,2175.2,2174.8,3.2078]
[1741447073051,0.70323616,2175.2,2174.8,3.2078]
[1741447073258,0.00689069,2175.2,2174.8,3.2078]
[1741447073750,0.00689069,2175.2,2174.8,3.57400312]
[1741447074653,0.00689069,2175.2,2174.9,0.6502]
[1741447074867,0.00689069,2175.2,2175.0,1.2819]
[1741447075257,0.00689069,2175.2,2174.7,0.00689069]
[1741447075652,1.5485061,2175.2,2174.7,0.00689069]
[1741447075862,0.70292039,2175.2,2174.7,0.00689069]
[1741447076063,1.54850263,2175.2,2174.7,0.00689069]
[1741447077168,0.00689069,2175.2,2174.7,0.00689069]
[1741447078358,0.70247304,2175.2,2174.7,0.00689069]
[1741447078563,3.2078,2175.0,2174.7,0.00689069]
[1741447078958,0.87415793,2175.1,2174.7,0.00689069]
[1741447079158,3.04941287,2175.2,2174.7,0.00689069]
[1741447079354,1.50844862,2175.2,2174.7,0.00689069]
[1741447079862,0.63429069,2175.2,2174.7,0.00689069]
[1741447080365,0.00689069,2175.2,2174.8,4.12758]
[1741447080556,0.00689069,2175.2,2175.1,3.2078]
[1741447081565,5.2968,2175.7,2175.1,3.2078]
[1741447081755,5.2968,2175.7,2175.1,4.12745]
[1741447081959,5.2968,2175.7,2175.0,2.6938]
[1741447081960,4.502,2176.2,2175.4,3.2078]
[1741447082156,5.9488,2176.2,2175.7,3.2078]
[1741447082764,5.95569069,2176.2,2175.7,3.2078]
[1741447083861,5.30369069,2176.2,2175.7,3.2078]
[1741447084062,3.21469069,2176.2,2175.7,3.2078]
[1741447084756,3.21469069,2176.2,2175.8,21.7]
[1741447084962,0.00689069,2176.2,2175.8,21.7]
[1741447085369,0.00689069,2176.2,2176.0,3.2078]
[1741447085569,0.00689069,2176.2,2176.1,1.2874]
[1741447085767,0.00689069,2176.2,2176.1,1.9091]
[1741447086370,0.00689069,2176.2,2176.1,1.2752]
[1741447090971,0.00689069,2176.2,2176.1,0.6217]
[1741447091168,0.00689069,2176.2,2175.9,0.00689069]
[1741447093976,0.60609069,2176.2,2175.9,0.00689069]
[1741447094182,3.2078,2176.0,2175.9,0.00689069]
[1741447094477,5.2958,2176.0,2175.9,0.00689069]
[1741447094969,9.2958,2176.0,2175.2,1.2872]
[1741447095166,3.2078,2175.7,2175.2,1.2872]
[1741447095675,2.088,2175.6,2175.1,3.2078]
[1741447095971,3.1731,2175.6,2175.1,3.2078]
[1741447096168,3.1731,2175.6,2175.1,3.21469069]
[1741447096373,3.1731,2175.6,2175.1,0.00689069]
[1741447097979,3.2078,2175.7,2175.1,3.21469069]
[1741447098181,2.088,2175.7,2175.2,1.2617]
[1741447098376,4.9681,2176.1,2175.4,3.2078]
[1741447098377,2.088,2176.0,2175.4,3.2078]
[1741447098974,0.00689069,2176.2,2175.4,3.2078]
[1741447099282,0.00689069,2176.2,2175.7,4.1272]
[1741447099480,0.00689069,2176.2,2175.8,22.9617]
[1741447100181,0.00689069,2176.2,2176.0,3.2078]
[1741447102578,0.00689069,2176.2,2175.6,2.088]
[1741447102779,0.00689069,2176.2,2175.5,3.2078]
[1741447103085,2.088,2176.1,2175.5,3.2078]
[1741447103387,0.6585,2176.0,2175.5,3.2078]
[1741447104376,2.088,2176.1,2175.5,3.2078]
[1741447104585,0.00689069,2176.2,2175.8,3.2078]
[1741447104775,0.00689069,2176.2,2175.9,1.2262]
[1741447105880,0.00689069,2176.2,2175.8,3.2078]
[1741447106587,0.00689069,2176.2,2175.5,5.2948]
[1741447111581,2.087,2176.1,2175.5,5.2948]
[1741447111782,0.6323,2176.0,2175.5,5.2948]
[1741447113294,0.6323,2176.0,2175.7,3.2078]
[1741447113486,2.09389069,2176.2,2175.8,0.6183]
[1741447113693,2.09389069,2176.2,2175.8,1.2681]
[1741447114093,0.00689069,2176.2,2175.8,1.2681]
[1741447114789,0.00689069,2176.2,2176.0,3.2078]
[1741447115087,3.2078,2176.6,2176.0,4.12705]
[1741447115288,3.2078,2176.6,2176.3,3.2078]
[1741447115493,2.087,2176.8,2176.4,1.2681]
[1741447115494,1.54215613,2176.7,2176.4,1.2681]
[1741447115801,0.6424,2176.5,2176.4,0.6498]
[1741447115990,0.6424,2176.5,2176.1,0.6183]
[1741447116311,0.64929069,2176.5,2176.2,0.5969]
[1741447116995,0.00689069,2176.5,2176.2,0.5969]
[1741447118592,2.087,2176.4,2176.1,0.00689069]
[1741447118793,3.2078,2176.3,2176.1,0.00689069]
[1741447118990,2.087,2176.4,2176.1,0.00689069]
[1741447119390,2.087,2176.4,2176.1,0.60469069]
[1741447123101,2.087,2176.4,2176.2,0.63]
[1741447123692,2.087,2176.4,2176.1,0.60469069]
[1741447124493,2.087,2176.4,2176.1,0.00689069]
[1741447124898,0.88061222,2176.5,2176.1,0.00689069]
[1741447125296,0.00689069,2176.5,2176.1,0.00689069]
[1741447125597,0.00689069,2176.5,2176.2,0.91919]
[1741447125794,0.00689069,2176.5,2176.3,3.8455]
[1741447126000,3.57754189,2177.0,2176.4,1.2236]
[1741447126199,4.27318803,2177.0,2176.4,1.2236]
[1741447126602,2.7034,2177.0,2176.4,22.9236]
[1741447126901,3.2078,2177.2,2176.6,3.2078]
[1741447127111,2.087,2177.2,2176.6,3.2078]
[1741447127299,0.00683728,2177.1,2176.6,3.2078]
[1741447128306,0.00683728,2177.1,2176.4,27.9946]
[1741447128307,0.00683728,2177.1,2176.9,3.2078]
[1741447128500,0.00683728,2177.1,2177.0,1.2201]
[1741447131103,0.00683728,2177.1,2176.7,0.5998]
[1741447131305,0.00683728,2177.1,2176.7,1.2464]
[1741447132907,0.00683728,2177.1,2176.9,3.2078]
[1741447139408,0.66203728,2177.1,2176.9,3.2078]
[1741447139608,3.2078,2177.0,2176.2,6.1918]
[1741447139814,5.23127011,2177.0,2176.3,0.6549]
[1741447140010,3.6945,2177.0,2176.3,0.6549]
[1741447140311,4.56631548,2177.0,2176.3,0.6549]
[1741447140622,0.6938238,2176.9,2176.3,0.6549]
[1741447140809,2.086,2176.8,2176.3,0.6549]
[1741447142709,3.2078,2176.7,2176.3,0.6549]
[1741447143014,0.6345,2176.6,2176.3,0.6549]
[1741447144214,3.2078,2176.7,2176.3,0.6549]
[1741447144418,2.086,2176.8,2176.3,0.6549]
[1741447145315,0.6315,2176.9,2176.3,0.6549]
[1741447145713,0.6315,2176.9,2176.3,2.7409]
[1741447146111,5.30063728,2177.1,2176.5,3.2078]
[1741447146313,0.00683728,2177.1,2176.5,3.2078]
[1741447148318,0.00683728,2177.1,2176.8,3.2078]
[1741447148518,0.00683728,2177.1,2176.9,1.8394]
[1741447152222,0.00683728,2177.1,2176.8,3.2078]
[1741447153120,0.00683728,2177.1,2176.8,4.12673]
[1741447153315,0.00683728,2177.1,2176.8,3.2078]
[1741447153718,3.04732469,2177.6,2176.9,0.9189]
[1741447153921,3.04732469,2177.6,2176.9,2.086]
[1741447154223,0.6315,2177.6,2177.1,3.2078]
[1741447154427,3.2078,2177.7,2177.2,0.6461]
[1741447154625,3.2078,2177.7,2177.2,1.2968]
[1741447154926,3.90399957,2177.7,2177.2,1.30369069]
[1741447155224,3.2078,2177.7,2177.2,1.30369069]
[1741447156826,3.2078,2177.7,2177.2,1.66575719]
[1741447157129,3.2078,2177.7,2177.3,0.598]
[1741447158720,3.90337742,2177.7,2177.3,0.598]
[1741447158925,3.2078,2177.7,2177.3,0.598]
[1741447159126,0.66,2177.6,2177.3,0.598]
[1741447160427,0.66,2177.6,2177.2,1.30369069]
[1741447160428,3.2078,2177.4,2177.2,0.00689069]
[1741447160623,1.53392025,2177.6,2177.2,0.00689069]
[1741447161229,0.66,2177.6,2177.2,0.00689069]
[1741447161929,3.2078,2177.7,2177.2,0.00689069]
[1741447162331,3.2078,2177.7,2177.3,21.7]
[1741447162829,3.2078,2177.7,2177.4,0.6085]
[1741447163029,3.2078,2177.7,2177.4,1.2311]
[1741447163933,3.2078,2177.7,2177.5,0.6324]
[1741447168832,2.733,2178.0,2177.5,0.6324]
[1741447168833,5.9408,2178.0,2177.5,0.6324]
[1741447170632,5.9408,2178.0,2177.4,4.4389]
[1741447171534,0.69397048,2177.9,2177.4,4.4389]
[1741447171933,3.2078,2177.7,2177.4,1.2311]
[1741447172135,3.2078,2177.7,2177.2,0.63549069]
[1741447172435,0.6451,2177.6,2177.2,0.63549069]
[1741447172631,0.6097,2177.5,2177.2,0.63549069]
[1741447173627,0.6097,2177.5,2177.2,0.00689069]
[1741447173835,3.2078,2177.4,2177.2,0.00689069]
[1741447174035,3.90255304,2177.4,2177.2,0.00689069]
[1741447174238,3.2078,2177.4,2177.2,0.00689069]
[1741447174633,4.74737958,2177.4,2177.2,0.00689069]
[1741447174834,3.2078,2177.4,2177.2,0.00689069]
[1741447175341,4.74778791,2177.4,2177.2,0.00689069]
[1741447175543,3.2078,2177.4,2177.2,0.00689069]
[1741447175928,4.74828238,2177.4,2177.2,0.00689069]
[1741447176136,0.6097,2177.5,2177.2,0.00689069]
[1741447176340,0.8740965,2177.6,2177.2,0.00689069]
[1741447176636,0.81846721,2177.6,2177.5,3.2078]
[1741447176942,2.78059212,2178.2,2177.5,3.2078]
[1741447177242,5.2928,2178.1,2177.5,3.2078]
[1741447177537,1.5408603,2178.0,2177.5,3.2078]
[1741447179240,2.7795603,2178.3,2177.8,3.2078]
[1741447179437,0.33974323,2178.5,2177.9,2.7425]
[1741447179634,0.6565,2178.6,2178.1,3.2078]
[1741447180140,0.6565,2178.6,2178.0,0.6291]
[1741447180639,0.6374,2178.5,2178.0,22.3291]
[1741447181336,0.6565,2178.6,2178.1,3.2078]
[1741447183334,3.2078,2178.8,2178.1,3.2078]
[1741447184041,3.9026278,2178.8,2178.1,3.2078]
[1741447185142,3.2078,2178.5,2178.1,3.2078]
[1741447185343,0.6609,2178.4,2178.1,3.2078]
[1741447185742,0.6609,2178.4,2178.0,2.7131]
[1741447186645,0.6609,2178.4,2178.1,3.2078]
[1741447187038,2.084,2178.7,2178.1,3.2078]
[1741447187449,2.77835436,2178.7,2178.1,3.2078]
[1741447187641,0.6585,2178.6,2178.1,3.2078]
[1741447187847,2.084,2178.7,2178.1,3.2078]
[1741447189742,0.6534,2178.6,2178.1,3.2078]
[1741447190439,2.084,2178.7,2178.1,3.2078]
[1741447191835,2.084,2178.7,2178.2,21.7]
[1741447192043,2.084,2178.7,2178.3,0.636]
[1741447192542,3.8247,2178.8,2178.3,0.636]
[1741447192742,3.8247,2178.8,2178.4,0.6131]
[1741447193637,5.36168803,2178.8,2178.4,0.6131]
[1741447193836,0.6219,2178.7,2178.4,0.6131]
[1741447195948,0.6219,2178.7,2178.3,0.00689069]
[1741447196246,1.1149,2178.7,2178.3,0.00689069]
[1741447196436,2.65180485,2178.7,2178.3,0.00689069]
[1741447196638,0.07258078,2178.6,2178.3,0.00689069]
[1741447196843,2.65180485,2178.7,2178.3,0.00689069]
[1741447197244,3.52250553,2178.7,2178.3,0.00689069]
[1741447198441,2.084,2178.6,2178.3,0.00689069]
[1741447198646,2.77781183,2178.6,2178.3,0.00689069]
[1741447198842,2.084,2178.6,2178.3,0.00689069]
[1741447199151,2.084,2178.6,2178.3,0.62889069]
[1741447200042,0.6219,2178.7,2178.3,0.62889069]
[1741447200344,5.9087,2178.8,2178.3,0.62889069]
[1741447200846,0.6254,2178.7,2178.3,0.62889069]
[1741447201344,5.9077,2178.8,2178.3,0.62889069]
[1741447202638,5.9077,2178.8,2178.3,1.00605057]
[1741447203250,5.9077,2178.8,2178.3,0.62889069]
[1741447204651,5.9077,2178.8,2178.3,1.00398697]
[1741447205451,2.6999,2178.8,2178.3,1.00398697]
[1741447206145,2.6999,2178.8,2178.4,3.2078]
[1741447207744,0.654,2178.7,2178.4,3.2078]
[1741447208048,3.56347061,2178.7,2178.4,3.2078]
[1741447208248,3.56347061,2178.7,2178.3,0.00689069]
[1741447209654,2.41667061,2178.7,2178.3,0.63479069]
[1741447210355,0.6591,2178.6,2178.3,0.63479069]
[1741447210746,2.41667061,2178.7,2178.3,3.84259069]
[1741447210948,0.87487574,2178.7,2178.3,3.21469069]
[1741447211157,0.6591,2178.6,2178.3,3.21469069]
[1741447211453,0.6591,2178.6,2178.3,24.91469069]
[1741447211660,0.6591,2178.6,2178.3,21.70689069]
[1741447211849,0.6591,2178.6,2178.3,0.00689069]
[1741447212349,2.7421,2178.6,2178.3,0.00689069]
[1741447212657,4.28389487,2178.6,2178.3,0.00689069]
[1741447212855,0.87487574,2178.5,2178.3,0.00689069]
[1741447213054,2.41667061,2178.5,2178.3,0.00689069]
[1741447213754,3.2078,2178.4,2177.9,0.6223]
[1741447213951,1.1401,2178.3,2177.7,3.2078]
[1741447214256,2.083,2178.2,2177.7,3.2078]
[1741447214558,4.23859487,2178.2,2177.7,3.2078]
[1741447215056,0.87487574,2178.1,2177.7,3.21469069]
[1741447215359,2.41667061,2178.1,2177.7,3.21469069]
[1741447216053,3.2078,2178.0,2177.7,0.00689069]
[1741447216351,4.74959487,2178.0,2177.7,0.00689069]
[1741447216556,0.69663194,2177.9,2177.7,0.00689069]
[1741447216758,0.655,2177.8,2177.7,0.00689069]
[1741447218360,3.3447,2177.8,2177.7,0.00689069]
[1741447218560,4.88753609,2177.8,2177.7,0.00689069]
[1741447219162,5.76079914,2177.8,2177.7,0.00689069]
[1741447219559,9.76079914,2177.8,2177.1,21.7]
[1741447219756,3.2078,2177.6,2177.0,5.0307]
[1741447219958,0.493,2177.5,2177.0,4.4196]
[1741447220157,2.083,2177.4,2177.0,4.4196]
[1741447220357,2.7182,2177.4,2177.0,4.4196]
[1741447220758,2.7182,2177.4,2177.0,4.42649069]
[1741447221865,2.7182,2177.4,2177.0,3.82139069]
[1741447222861,0.6537,2177.3,2177.0,3.82139069]
[1741447225069,2.084,2177.7,2177.0,3.82139069]
[1741447225272,2.084,2177.7,2177.1,1.2761]
[1741447225870,3.2078,2177.6,2177.1,1.2761]
[1741447226262,0.6032,2177.5,2177.1,1.2761]
[1741447228165,1.0967,2177.5,2177.1,0.6361]
[1741447228978,0.6032,2177.5,2177.1,0.6361]
[1741447229165,2.084,2177.5,2177.1,0.6361]
[1741447230170,2.084,2177.6,2177.1,0.6361]
[1741447231376,5.2918,2177.6,2177.1,0.6361]
[1741447231674,2.084,2177.6,2177.1,0.6361]
[1741447232484,2.084,2177.6,2177.1,1.5549]
[1741447232676,2.084,2177.6,2177.1,0.6361]
[1741447234471,5.2918,2177.6,2177.1,0.6361]
[1741447235172,2.084,2177.6,2177.1,0.6361]
[1741447236266,3.2078,2178.0,2177.1,1.55488]
[1741447236471,3.2078,2178.0,2177.3,3.2078]
[1741447236675,3.2078,2178.0,2177.4,2.18646]
[1741447236676,2.084,2178.0,2177.4,2.18646]
[1741447236873,2.084,2178.0,2177.4,1.2678]
[1741447237078,5.2918,2178.0,2177.5,0.6066]
[1741447237488,2.084,2178.0,2177.5,0.6066]
[1741447237986,2.084,2178.0,2177.6,3.2078]
[1741447239179,0.00689069,2178.2,2177.6,4.12639]
[1741447239578,0.00689069,2178.2,2177.6,3.2078]
[1741447242184,1.54566597,2178.2,2177.6,3.2078]
[1741447242384,2.41740541,2178.2,2177.6,3.2078]
[1741447243482,3.2078,2178.0,2177.5,0.6066]
[1741447243784,2.688,2177.9,2177.5,0.6066]
[1741447243982,4.22677528,2177.9,2177.5,0.6066]
[1741447244181,5.09851472,2177.9,2177.5,0.6066]
[1741447244384,1.53877528,2177.8,2177.5,0.6066]
[1741447244884,2.41051472,2177.8,2177.5,0.6066]
[1741447246288,2.41051472,2177.8,2177.4,0.6179]
[1741447247381,0.598,2177.7,2177.4,0.6179]
[1741447247685,2.41051472,2177.8,2177.4,0.6179]
[1741447248784,0.87173944,2177.8,2177.5,4.12644]
[1741447248983,5.38168671,2178.3,2177.5,3.2078]
[1741447249184,1.54577548,2178.2,2177.5,3.2078]
[1741447249388,0.00689069,2178.2,2177.5,3.2078]
[1741447249584,0.00689069,2178.2,2177.8,3.2078]
[1741447249788,0.00689069,2178.2,2177.9,1.8736]
[1741447250386,0.00689069,2178.2,2178.1,3.2078]
[1741447250991,0.00689069,2178.2,2178.1,24.9078]
[1741447255496,0.00689069,2178.2,2178.1,3.2078]
[1741447257697,0.00689069,2178.2,2178.1,4.12619]
[1741447257899,0.00689069,2178.2,2178.1,3.2078]
[1741447259397,0.00689069,2178.2,2178.1,4.12619]
[1741447259596,0.00689069,2178.2,2178.1,3.2078]
[1741447261295,0.6264,2178.9,2178.1,3.2078]
[1741447261491,0.6069,2179.3,2178.6,3.2078]
[1741447261695,3.61824576,2179.8,2178.9,3.2078]
[1741447261998,3.61824576,2179.8,2179.2,3.2078]
[1741447262193,3.2078,2180.2,2179.3,1.2819]
[1741447262401,3.2078,2180.2,2179.5,3.2078]
[1741447262597,0.00689069,2180.0,2179.5,3.21469069]
[1741447263401,3.2078,2179.9,2179.5,0.00689069]
[1741447263698,0.5994,2179.8,2179.5,0.00689069]
[1741447264296,3.2078,2179.6,2179.5,0.00689069]
[1741447265905,7.2078,2179.6,2179.5,0.00689069]
[1741447266905,7.28031671,2179.6,2179.5,0.00689069]
[1741447267096,0.6423,2179.7,2179.5,0.00689069]
[1741447268109,2.7243,2179.7,2179.5,0.00689069]
[1741447268406,0.6423,2179.7,2179.5,0.00689069]
[1741447268801,0.00689069,2180.0,2179.5,0.00689069]
[1741447269006,2.082,2179.9,2179.5,0.00689069]
[1741447270021,0.00689069,2180.0,2179.5,3.21469069]
[1741447270308,0.00689069,2180.0,2179.6,0.6207]
[1741447272205,0.00689069,2180.0,2179.7,0.6481]
[1741447272910,0.00689069,2180.0,2179.8,0.6113]
[1741447273603,0.00689069,2180.0,2179.7,0.6481]
[1741447273803,3.2078,2179.9,2179.5,0.00689069]
[1741447277215,0.00689069,2180.0,2179.5,0.00689069]
[1741447277408,0.00689069,2180.0,2179.5,3.21469069]
[1741447277707,0.00689069,2180.0,2179.6,0.6045]
[1741447278010,0.00689069,2180.0,2179.7,1.2193]
[1741447278707,0.4922,2180.5,2179.7,1.2193]
[1741447278708,3.2078,2180.6,2179.9,0.91761]
[1741447278914,3.2078,2180.6,2180.1,3.2078]
[1741447279113,3.2078,2180.6,2180.2,0.6049]
[1741447279317,3.2078,2180.6,2180.3,0.6144]
[1741447280917,3.2078,2180.6,2180.2,1.2094]
[1741447281215,5.2888,2180.6,2180.1,3.2078]
[1741447281411,4.4525,2180.5,2180.1,3.2078]
[1741447282221,3.2078,2180.2,2179.8,0.6205]
[1741447283618,5.2888,2180.2,2179.6,1.2323]
[1741447285024,3.2078,2180.2,2179.7,3.2078]
[1741447285320,2.08,2180.4,2179.7,3.2078]
[1741447285516,3.2078,2180.2,2179.6,1.2323]
[1741447286521,3.2078,2179.9,2179.6,1.2323]
[1741447286722,3.2078,2179.9,2179.5,0.00689069]
[1741447287019,0.5998,2179.8,2179.5,0.00689069]
[1741447288319,1.29285735,2179.8,2179.5,0.00689069]
[1741447288519,1.44138146,2179.8,2179.5,0.00689069]
[1741447288711,0.5998,2179.8,2179.5,0.00689069]
[1741447288912,3.2078,2179.6,2179.5,0.00689069]
[1741447289117,9.2878,2179.6,2178.5,3.2078]
[1741447289315,3.2078,2179.3,2178.7,22.9582]
[1741447290121,3.2078,2179.4,2178.8,3.2078]
[1741447290423,0.00689069,2179.2,2178.8,3.21469069]
[1741447290623,0.00689069,2179.2,2179.1,3.2078]
[1741447291317,2.081,2180.0,2179.3,0.91786]
[1741447291524,5.2878,2180.1,2179.4,3.8545]
[1741447291922,5.2878,2180.1,2179.5,21.7]
[1741447292525,2.13363375,2180.0,2179.5,21.7]
[1741447292724,1.53743375,2180.0,2179.5,21.7]
[1741447293022,5.2878,2180.1,2179.5,21.7]
[1741447294419,5.2878,2180.1,2179.6,0.6538]
[1741447295419,2.16726357,2180.0,2179.4,3.8545]
[1741447295726,3.0383072,2180.0,2179.5,0.6563]
[1741447296820,3.0383072,2180.0,2179.4,25.5545]
[1741447296821,0.5993,2179.9,2179.4,0.6467]
[1741447297223,3.2078,2179.8,2179.4,0.6467]
[1741447297729,5.6164072,2179.8,2179.4,0.6467]
[1741447297932,4.07884363,2179.8,2179.4,0.6467]
[1741447298631,3.2078,2179.8,2179.4,0.6467]
[1741447298832,3.90210316,2179.8,2179.4,0.6467]
[1741447299425,3.2078,2179.8,2179.4,0.6467]
[1741447299631,2.13724758,2179.9,2179.4,0.6467]
[1741447299831,0.5993,2179.9,2179.4,0.6467]
[1741447300730,2.08,2179.9,2179.4,0.6467]
[1741447301533,4.48959768,2179.9,2179.4,0.6467]
[1741447302124,3.2078,2179.8,2179.4,0.6467]
[1741447302425,4.74603244,2179.8,2179.4,0.6467]
[1741447302620,1.5381857,2179.7,2179.4,0.6467]
[1741447302824,1.53813727,2179.7,2179.4,0.6467]
[1741447303032,1.53813727,2179.7,2179.3,22.3563]
[1741447303033,1.53813727,2179.7,2179.3,0.6563]
[1741447303230,2.40941614,2179.7,2179.3,0.6563]
[1741447303625,0.6106,2179.6,2179.3,0.6563]
[1741447304031,2.40941614,2179.7,2179.3,0.6563]